fUST/lending_fUST_20250531
["ID","MTS","AMOUNT","RATE_DAILY","PERIOD"]
[363237724,1748637044367,-160.0,0.00017626,2]
[363237725,1748637044377,-212.7380601,0.00017626,2]
[363237726,1748637044386,-160.0,0.00017626,2]
[363237727,1748637044395,-160.0,0.00017626,2]
[363237728,1748637044404,-842.5625,0.00017626,2]
[363237729,1748637044414,-5449.33,0.00017641,2]
[363237730,1748637044424,-500.0,0.00017665,2]
[363237731,1748637044434,-1000.0,0.00017737,2]
[363237732,1748637044444,-207.4,0.00017746,2]
[363237733,1748637044453,-300.0,0.00017746,2]
[363237734,1748637044463,-300.0,0.00017746,2]
[363237735,1748637044473,-300.0,0.00017746,2]
[363237736,1748637044484,-300.0,0.00017746,2]
[363237737,1748637044494,-300.0,0.00017746,2]
[363237738,1748637044503,-300.0,0.00017746,2]
[363237739,1748637044513,-5000.0,0.00017746,2]
[363237740,1748637044524,-300.0,0.00017746,2]
[363237741,1748637044534,-300.0,0.00017746,2]
[363237742,1748637044544,-300.0,0.00017746,2]
[363237743,1748637044553,-300.0,0.00017746,2]
[363237744,1748637044563,-300.0,0.00017746,2]
[363237745,1748637044572,-300.0,0.00017746,2]
[363237746,1748637044582,-300.0,0.00017746,2]
[363237747,1748637044593,-300.0,0.00017746,2]
[363237748,1748637044603,-300.0,0.00017746,2]
[363237749,1748637044613,-316.6129922,0.00017753,2]
[363237750,1748637044623,-1205.537788,0.00017762,2]
[363237751,1748637044633,-1205.537788,0.00017762,2]
[363237752,1748637044643,-5352.31529955,0.00017762,2]
[363237753,1748637044652,-587.0,0.00017792,2]
[363237754,1748637044662,-8333.33,0.00017807,2]
[363237755,1748637044671,-8333.33,0.00017807,2]
[363237756,1748637044680,-151.0,0.00017807,2]
[363237757,1748637044690,-430.0,0.00017808,2]
[363237758,1748637044700,-512.41677822,0.00017808,2]
[363237759,1748637044709,-430.0,0.00017808,2]
[363237760,1748637044719,-430.0,0.00017808,2]
[363237761,1748637044730,-1791.27,0.00017808,2]
[363237762,1748637044739,-818.21,0.00017808,2]
[363237763,1748637044749,-430.0,0.00017808,2]
[363237764,1748637044759,-1598.24,0.00017808,2]
[363237765,1748637044769,-506.55,0.00017808,2]
[363237766,1748637044778,-2049.17,0.00017808,2]
[363237767,1748637044788,-430.0,0.00017808,2]
[363237768,1748637044798,-430.0,0.00017808,2]
[363237769,1748637044808,-430.0,0.00017808,2]
[363237770,1748637044817,-3072.68,0.00017808,2]
[363237771,1748637044827,-430.0,0.00017808,2]
[363237772,1748637044837,-430.0,0.00017808,2]
[363237773,1748637044847,-430.0,0.00017808,2]
[363237774,1748637044856,-430.0,0.00017808,2]
[363237775,1748637044866,-454.48,0.00017808,2]
[363237776,1748637044875,-430.0,0.00017808,2]
[363237777,1748637044884,-462.37,0.00017808,2]
[363237778,1748637044894,-384.641853,0.00017808,2]
[363237779,1748637044903,-384.641853,0.00017808,2]
[363237780,1748637044912,-1542.09,0.00017808,2]
[363237781,1748637044922,-534.81,0.00017808,2]
[363237782,1748637044931,-1240.5,0.00017808,2]
[363237783,1748637044941,-437.82,0.00017808,2]
[363237784,1748637044950,-1853.72,0.00017808,2]
[363237785,1748637044960,-1309.94,0.00017808,2]
[363237786,1748637044969,-151.0,0.00017808,2]
[363237787,1748637044985,-430.0,0.00017808,2]
[363237788,1748637044994,-636.27,0.00017808,2]
[363237789,1748637045004,-430.0,0.00017808,2]
[363237790,1748637045014,-634.85,0.00017808,2]
[363237791,1748637045025,-1097.58,0.00017808,2]
[363237792,1748637045034,-430.0,0.00017808,2]
[363237793,1748637045046,-430.0,0.00017808,2]
[363237794,1748637045056,-835.82,0.00017808,2]
[363237795,1748637045066,-430.0,0.00017808,2]
[363237796,1748637045076,-1029.13,0.00017808,2]
[363237797,1748637045087,-430.0,0.00017808,2]
[363237798,1748637045096,-1128.96,0.00017808,2]
[363237799,1748637045106,-430.0,0.00017808,2]
[363237800,1748637045117,-430.0,0.00017808,2]
[363237801,1748637045128,-430.0,0.00017808,2]
[363237802,1748637045138,-892.03,0.00017808,2]
[363237803,1748637045147,-1683.56,0.00017808,2]
[363237804,1748637045156,-1418.51,0.00017808,2]
[363237805,1748637045168,-870.01,0.00017808,2]
[363237806,1748637045187,-430.0,0.00017808,2]
[363237807,1748637045205,-8333.33,0.00017827,2]
[363237808,1748637045214,-151.0,0.00017827,2]
[363237809,1748637045223,-151.0,0.00017827,2]
[363237810,1748637045233,-221.212485,0.00017827,2]
[363237811,1748637045242,-151.0,0.00017827,2]
[363237812,1748637045251,-171.956764,0.00017827,2]
[363237813,1748637045260,-171.956764,0.00017827,2]
[363237814,1748637045269,-210.23,0.00017827,2]
[363237815,1748637045279,-210.23,0.00017827,2]
[363237816,1748637045289,-965.409704,0.00017828,2]
[363237817,1748637045298,-965.409704,0.00017828,2]
[363237818,1748637045307,-774.57345242,0.00017982,2]
[363237819,1748637045316,-151.0,0.00018,2]
[363237820,1748637045325,-162.56,0.00018,2]
[363237821,1748637045334,-150747.71313063,0.00018,2]
[363237822,1748637045343,-39378.76177257,0.00018,2]
[363237823,1748637045353,-3193.73686345,0.00018,2]
[363237824,1748637045362,-10213.32244119,0.00018,2]
[363237825,1748637045873,-0.00177141,0.00016437,2]
[363237826,1748637045912,5000.0,0.000141,2]
[363237828,1748637046294,-255.38493859,0.00016437,2]
[363237829,1748637046304,-300.0,0.00016437,2]
[363237830,1748637046313,-430.0,0.00016438,2]
[363237831,1748637046322,-691.8882338,0.0001671,2]
[363237832,1748637046332,-691.8882338,0.0001671,2]
[363237833,1748637046341,-691.8882338,0.0001671,2]
[363237834,1748637046350,-691.8882338,0.0001671,2]
[363237835,1748637046361,-691.8882338,0.0001671,2]
[363237836,1748637046370,-691.8882338,0.0001671,2]
[363237837,1748637046380,-691.8882338,0.0001671,2]
[363237838,1748637046389,-691.8882338,0.0001671,2]
[363237839,1748637046399,-691.8882338,0.0001671,2]
[363237840,1748637046408,-691.8882338,0.0001671,2]
[363237841,1748637046418,-691.8882338,0.0001671,2]
[363237842,1748637046427,-691.8882338,0.0001671,2]
[363237843,1748637046436,-691.8882338,0.0001671,2]
[363237844,1748637046445,-691.8882338,0.0001671,2]
[363237845,1748637046454,-654.76324516,0.0001671,2]
[363237847,1748637046839,-430.0,0.00016438,2]
[363237848,1748637046848,-252.16958998,0.00016438,2]
[363237849,1748637046997,-177.83041002,0.00016438,2]
[363237850,1748637047007,-37.12498864,0.0001671,2]
[363237851,1748637047016,-691.8882338,0.0001671,2]
[363237852,1748637047025,-691.8882338,0.0001671,2]
[363237853,1748637047035,-691.8882338,0.0001671,2]
[363237854,1748637047044,-691.8882338,0.0001671,2]
[363237855,1748637047053,-691.8882338,0.0001671,2]
[363237856,1748637047063,-54.90107894,0.0001671,2]
[363237857,1748637047078,-636.98715486,0.0001671,2]
[363237858,1748637047087,-93.10380486,0.0001671,2]
[363237859,1748637175332,-962.0,0.00015534,2]
[363237860,1748637244103,-992.0,0.00015505,2]
[363237861,1748637308081,-2076.0,0.0001535,2]
[363237863,1748637465230,344.75,0.000141,2]
[363237864,1748637565632,6285.6263692,0.00014022,2]
[363237865,1748637828019,-187.84,0.00014111,2]
[363237866,1748637830666,-151.14449984,0.00014111,2]
[363237867,1748637832263,-38.13607426,0.00014111,2]
[363237868,1748637902119,449.142731,0.00013699,2]
[363237870,1748637907752,10000.0,0.00014022,2]
[363237871,1748638137999,24900.0,0.00013999,2]
[363237887,1748638187063,5000.0,0.000141,2]
[363237890,1748638204151,5000.0,0.000141,2]
[363237891,1748638219474,5000.0,0.000141,2]
[363237902,1748638234587,5000.0,0.000141,2]
[363237912,1748638238494,-891.0,0.00014353,2]
[363237913,1748638238507,-2234.0,0.00014353,2]
[363237914,1748638238517,-300.0,0.00014998,2]
[363237915,1748638238527,-107.49886231,0.00014998,2]
[363237916,1748638238550,-192.50113769,0.00014998,2]
[363237917,1748638238559,-1200.0,0.00014998,2]
[363237918,1748638238568,-1999.14779738,0.00014999,2]
[363237919,1748638238583,-500.0,0.00014999,2]
[363237920,1748638238592,-241.19772861,0.00014999,2]
[363237921,1748638238601,-500.0,0.00014999,2]
[363237922,1748638238611,-452.37164718,0.00014999,2]
[363237923,1748638238622,-500.0,0.00014999,2]
[363237924,1748638238631,-500.0,0.00014999,2]
[363237925,1748638238641,-500.0,0.00014999,2]
[363237926,1748638238651,-445.63477613,0.00014999,2]
[363237927,1748638238661,-500.0,0.00014999,2]
[363237928,1748638238670,-500.0,0.00014999,2]
[363237929,1748638238680,-500.0,0.00014999,2]
[363237930,1748638238689,-500.0,0.00014999,2]
[363237931,1748638238698,-500.0,0.00014999,2]
[363237932,1748638238707,-500.0,0.00014999,2]
[363237933,1748638238717,-318.35177198,0.00014999,2]
[363237934,1748638238726,-72987.05285116,0.00015,2]
[363237935,1748638238736,-260.501759,0.00015089,2]
[363237936,1748638238747,-1135.8653316,0.00015339,2]
[363237937,1748638238757,-3125.0,0.00015394,2]
[363237938,1748638238768,-3125.0,0.00015394,2]
[363237939,1748638238777,-160.0,0.00015395,2]
[363237940,1748638238787,-3125.0,0.00015395,2]
[363237941,1748638238796,-3125.0,0.00015395,2]
[363237942,1748638238806,-3125.0,0.00015396,2]
[363237943,1748638238815,-3125.0,0.00015396,2]
[363237944,1748638238825,-3125.0,0.00015396,2]
[363237945,1748638238834,-685.71493302,0.00015627,2]
[363237946,1748638238843,-15000.0,0.00016,3]
[363237947,1748638238853,-12663.11115519,0.00016,3]
[363237948,1748638238863,-842.5625,0.00016,3]
[363237949,1748638238872,-212.7380601,0.00016,3]
[363237950,1748638238882,-3125.0,0.000162,2]
[363237951,1748638238891,-3396.40602858,0.00016338,2]
[363237952,1748638238901,-420.0,0.00016414,2]
[363237953,1748638238910,-420.0,0.00016415,2]
[363237954,1748638238920,-3125.0,0.00016436,2]
[363237955,1748638238929,-3125.0,0.00016437,2]
[363237956,1748638238939,-3125.0,0.00016437,2]
[363237957,1748638238948,-3125.0,0.00016437,2]
[363237958,1748638238957,-3125.0,0.00016437,2]
[363237959,1748638238967,-3125.0,0.00016437,2]
[363237960,1748638238977,-429.94939126,0.00016438,2]
[363237961,1748638238987,-430.0,0.00016438,2]
[363237962,1748638238996,-430.0,0.00016438,2]
[363237963,1748638239005,-430.0,0.00016438,2]
[363237964,1748638239015,-546.12383404,0.00016438,2]
[363237965,1748638239024,-456.65616903,0.00016438,2]
[363237966,1748638239034,-430.0,0.00016438,2]
[363237967,1748638239043,-430.0,0.00016438,2]
[363237968,1748638239052,-430.0,0.00016438,2]
[363237969,1748638239061,-430.0,0.00016438,2]
[363237970,1748638239071,-430.0,0.00016438,2]
[363237971,1748638239080,-430.0,0.00016438,2]
[363237972,1748638239090,-430.0,0.00016438,2]
[363237973,1748638239099,-430.0,0.00016438,2]
[363237974,1748638239108,-500.0,0.00016438,2]
[363237975,1748638239117,-430.0,0.00016438,2]
[363237976,1748638239126,-430.0,0.00016438,2]
[363237977,1748638239136,-430.0,0.00016438,2]
[363237978,1748638239145,-435.07818938,0.00016438,2]
[363237979,1748638239155,-430.0,0.00016438,2]
[363237980,1748638239164,-430.0,0.00016438,2]
[363237981,1748638239173,-430.0,0.00016438,2]
[363237982,1748638239183,-430.0,0.00016438,2]
[363237983,1748638239191,-430.0,0.00016438,2]
[363237984,1748638239201,-430.0,0.00016438,2]
[363237985,1748638239210,-430.0,0.00016438,2]
[363237986,1748638239220,-430.0,0.00016438,2]
[363237987,1748638239229,-430.0,0.00016438,2]
[363237988,1748638239238,-304.39495374,0.00016438,2]
[363237989,1748638239248,-430.0,0.00016438,2]
[363237990,1748638239257,-430.0,0.00016438,2]
[363237991,1748638239266,-430.0,0.00016438,2]
[363237992,1748638239276,-569.06293867,0.00016438,2]
[363237993,1748638239285,-430.0,0.00016438,2]
[363237994,1748638239294,-430.0,0.00016438,2]
[363237995,1748638239303,-372.23046982,0.00016438,2]
[363237996,1748638239313,-430.0,0.00016438,2]
[363237997,1748638239322,-430.0,0.00016438,2]
[363237998,1748638239332,-430.0,0.00016438,2]
[363237999,1748638239479,-430.0,0.00016438,2]
[363238000,1748638239491,-430.0,0.00016438,2]
[363238001,1748638239501,-400.0,0.00016438,2]
[363238002,1748638239511,-430.0,0.00016438,2]
[363238003,1748638239520,-430.0,0.00016438,2]
[363238004,1748638239529,-430.0,0.00016438,2]
[363238005,1748638239538,-430.0,0.00016438,2]
[363238006,1748638239548,-497.02108708,0.00016438,2]
[363238007,1748638239557,-430.0,0.00016438,2]
[363238008,1748638239566,-430.0,0.00016438,2]
[363238009,1748638239577,-430.0,0.00016438,2]
[363238010,1748638239586,-430.0,0.00016438,2]
[363238011,1748638239595,-430.0,0.00016438,2]
[363238012,1748638239605,-430.0,0.00016438,2]
[363238013,1748638239614,-430.0,0.00016438,2]
[363238014,1748638239624,-430.0,0.00016438,2]
[363238015,1748638239633,-430.0,0.00016438,2]
[363238016,1748638239643,-430.0,0.00016438,2]
[363238017,1748638239652,-430.0,0.00016438,2]
[363238018,1748638239662,-430.0,0.00016438,2]
[363238019,1748638239672,-430.0,0.00016438,2]
[363238020,1748638239681,-430.0,0.00016438,2]
[363238021,1748638239690,-430.0,0.00016438,2]
[363238022,1748638239699,-430.0,0.00016438,2]
[363238023,1748638239709,-430.0,0.00016438,2]
[363238024,1748638239718,-430.0,0.00016438,2]
[363238025,1748638239727,-430.0,0.00016438,2]
[363238026,1748638239737,-430.0,0.00016438,2]
[363238027,1748638239746,-430.0,0.00016438,2]
[363238028,1748638239755,-430.0,0.00016438,2]
[363238029,1748638239764,-430.0,0.00016438,2]
[363238030,1748638239773,-430.0,0.00016438,2]
[363238031,1748638239782,-430.0,0.00016438,2]
[363238032,1748638239791,-430.0,0.00016438,2]
[363238033,1748638239800,-441.06159895,0.00016438,2]
[363238034,1748638239809,-1069.46,0.00016438,2]
[363238035,1748638239819,-430.0,0.00016438,2]
[363238036,1748638239829,-430.0,0.00016438,2]
[363238037,1748638239838,-430.0,0.00016438,2]
[363238038,1748638239847,-430.0,0.00016438,2]
[363238039,1748638239856,-430.0,0.00016438,2]
[363238040,1748638239866,-430.0,0.00016438,2]
[363238041,1748638239875,-453.21201325,0.00016438,2]
[363238042,1748638239885,-430.0,0.00016438,2]
[363238043,1748638239894,-430.0,0.00016438,2]
[363238044,1748638239904,-430.0,0.00016438,2]
[363238045,1748638239913,-430.0,0.00016438,2]
[363238046,1748638239923,-430.0,0.00016438,2]
[363238047,1748638239932,-430.0,0.00016438,2]
[363238048,1748638239942,-500.0,0.00016438,2]
[363238049,1748638239951,-500.0,0.00016438,2]
[363238050,1748638239960,-500.0,0.00016438,2]
[363238051,1748638239970,-500.0,0.00016438,2]
[363238052,1748638239979,-430.0,0.00016438,2]
[363238053,1748638239989,-500.0,0.00016438,2]
[363238054,1748638239998,-541.1,0.00016438,2]
[363238055,1748638240008,-907.51,0.00016438,2]
[363238056,1748638240018,-430.0,0.00016438,2]
[363238057,1748638240027,-430.0,0.00016438,2]
[363238058,1748638240037,-1000.0,0.00016438,2]
[363238059,1748638240047,-430.0,0.00016438,2]
[363238060,1748638240055,-430.0,0.00016438,2]
[363238061,1748638240065,-430.0,0.00016438,2]
[363238062,1748638240074,-430.0,0.00016438,2]
[363238064,1748638240083,-395.04888361,0.00016438,2]
[363238065,1748638240092,-2026.64,0.00016438,2]
[363238066,1748638240101,-430.0,0.00016438,2]
[363238067,1748638240110,-430.0,0.00016438,2]
[363238068,1748638240120,-430.0,0.00016438,2]
[363238069,1748638240129,-430.0,0.00016438,2]
[363238071,1748638240138,-430.0,0.00016438,2]
[363238073,1748638240147,-430.0,0.00016438,2]
[363238074,1748638240157,-203.72963428,0.00016438,2]
[363238075,1748638240166,-430.0,0.00016438,2]
[363238076,1748638240175,-430.0,0.00016438,2]
[363238077,1748638240184,-563.25,0.00016438,2]
[363238078,1748638240193,-430.0,0.00016438,2]
[363238079,1748638240203,-430.0,0.00016438,2]
[363238080,1748638240212,-430.0,0.00016438,2]
[363238081,1748638240221,-430.0,0.00016438,2]
[363238082,1748638240230,-430.0,0.00016438,2]
[363238083,1748638240239,-430.0,0.00016438,2]
[363238084,1748638240249,-430.0,0.00016438,2]
[363238085,1748638240258,-430.0,0.00016438,2]
[363238086,1748638240267,-2791.01,0.00016438,2]
[363238087,1748638240276,-430.0,0.00016438,2]
[363238088,1748638240285,-840.28,0.00016438,2]
[363238089,1748638240295,-453.67,0.00016438,2]
[363238090,1748638240304,-430.0,0.00016438,2]
[363238091,1748638240313,-430.0,0.00016438,2]
[363238092,1748638240322,-430.0,0.00016438,2]
[363238093,1748638240331,-432.72,0.00016438,2]
[363238094,1748638240341,-519.87,0.00016438,2]
[363238095,1748638240350,-430.0,0.00016438,2]
[363238096,1748638240359,-430.0,0.00016438,2]
[363238097,1748638240368,-430.0,0.00016438,2]
[363238098,1748638240377,-430.0,0.00016438,2]
[363238099,1748638240386,-630.22,0.00016438,2]
[363238100,1748638240395,-430.0,0.00016438,2]
[363238101,1748638240404,-430.0,0.00016438,2]
[363238102,1748638240413,-799.27,0.00016438,2]
[363238103,1748638240423,-430.0,0.00016438,2]
[363238104,1748638240432,-2257.3,0.00016438,2]
[363238105,1748638240441,-430.0,0.00016438,2]
[363238106,1748638240450,-430.0,0.00016438,2]
[363238107,1748638240460,-430.0,0.00016438,2]
[363238108,1748638240469,-2030.97,0.00016438,2]
[363238109,1748638240478,-430.0,0.00016438,2]
[363238110,1748638240487,-430.0,0.00016438,2]
[363238111,1748638240497,-430.0,0.00016438,2]
[363238112,1748638240506,-430.0,0.00016438,2]
[363238113,1748638240515,-430.0,0.00016438,2]
[363238114,1748638240524,-430.0,0.00016438,2]
[363238115,1748638240535,-510.14,0.00016438,2]
[363238116,1748638240544,-3239.69,0.00016438,2]
[363238117,1748638240555,-430.0,0.00016438,2]
[363238118,1748638240564,-2215.48,0.00016438,2]
[363238119,1748638240574,-430.0,0.00016438,2]
[363238120,1748638240589,-430.0,0.00016438,2]
[363238121,1748638240598,-430.0,0.00016438,2]
[363238122,1748638240607,-466.31,0.00016438,2]
[363238123,1748638240616,-430.0,0.00016438,2]
[363238124,1748638240625,-518.01,0.00016438,2]
[363238125,1748638240634,-430.0,0.00016438,2]
[363238126,1748638240643,-622.82,0.00016438,2]
[363238127,1748638240653,-430.0,0.00016438,2]
[363238128,1748638240662,-430.0,0.00016438,2]
[363238129,1748638240671,-430.0,0.00016438,2]
[363238130,1748638240680,-430.0,0.00016438,2]
[363238131,1748638240690,-430.0,0.00016438,2]
[363238132,1748638240700,-381.14827141,0.00016438,2]
[363238133,1748638240709,-430.0,0.00016438,2]
[363238134,1748638240719,-430.0,0.00016438,2]
[363238135,1748638240728,-430.0,0.00016438,2]
[363238136,1748638240737,-430.0,0.00016438,2]
[363238137,1748638240746,-430.0,0.00016438,2]
[363238138,1748638240755,-430.0,0.00016438,2]
[363238140,1748638240764,-430.0,0.00016438,2]
[363238141,1748638240776,-430.0,0.00016438,2]
[363238144,1748638240786,-430.0,0.00016438,2]
[363238145,1748638240795,-430.0,0.00016438,2]
[363238147,1748638240804,-430.0,0.00016438,2]
[363238149,1748638240813,-430.0,0.00016438,2]
[363238151,1748638240823,-430.0,0.00016438,2]
[363238153,1748638240832,-430.0,0.00016438,2]
[363238155,1748638240842,-430.0,0.00016438,2]
[363238157,1748638240851,-636.56,0.00016438,2]
[363238159,1748638240860,-430.0,0.00016438,2]
[363238161,1748638240869,-430.0,0.00016438,2]
[363238163,1748638240879,-781.28,0.00016438,2]
[363238165,1748638240887,-360.63370483,0.00016438,2]
[363238167,1748638240897,-430.0,0.00016438,2]
[363238169,1748638240907,-430.0,0.00016438,2]
[363238172,1748638240917,-430.0,0.00016438,2]
[363238173,1748638240926,-430.0,0.00016438,2]
[363238175,1748638240936,-430.0,0.00016438,2]
[363238177,1748638240945,-430.0,0.00016438,2]
[363238179,1748638240954,-373.39057096,0.00016438,2]
[363238181,1748638240964,-430.0,0.00016438,2]
[363238183,1748638240974,-430.0,0.00016438,2]
[363238185,1748638240984,-430.0,0.00016438,2]
[363238187,1748638240993,-430.0,0.00016438,2]
[363238190,1748638241003,-430.0,0.00016438,2]
[363238191,1748638241012,-1403.37,0.00016438,2]
[363238193,1748638241022,-192.86084402,0.00016438,2]
[363238195,1748638241032,-430.0,0.00016438,2]
[363238198,1748638241042,-430.0,0.00016438,2]
[363238200,1748638241051,-430.0,0.00016438,2]
[363238201,1748638241060,-430.0,0.00016438,2]
[363238204,1748638241070,-430.0,0.00016438,2]
[363238206,1748638241080,-430.0,0.00016438,2]
[363238208,1748638241089,-430.0,0.00016438,2]
[363238209,1748638241098,-430.0,0.00016438,2]
[363238211,1748638241108,-430.0,0.00016438,2]
[363238213,1748638241117,-430.0,0.00016438,2]
[363238215,1748638241126,-430.0,0.00016438,2]
[363238217,1748638241136,-473.0,0.00016438,2]
[363238220,1748638241146,-430.0,0.00016438,2]
[363238221,1748638241156,-430.0,0.00016438,2]
[363238223,1748638241166,-1284.55,0.00016438,2]
[363238225,1748638241175,-1111.19,0.00016438,2]
[363238227,1748638241185,-1294.99,0.00016438,2]
[363238229,1748638241194,-430.0,0.00016438,2]
[363238231,1748638241203,-430.0,0.00016438,2]
[363238233,1748638241212,-348.66857277,0.00016438,2]
[363238235,1748638241221,-1020.07,0.00016438,2]
[363238237,1748638241231,-430.0,0.00016438,2]
[363238239,1748638241241,-430.0,0.00016438,2]
[363238241,1748638241250,-436.62038587,0.00016438,2]
[363238243,1748638241259,-430.0,0.00016438,2]
[363238245,1748638241269,-430.0,0.00016438,2]
[363238247,1748638241278,-430.0,0.00016438,2]
[363238249,1748638241288,-430.0,0.00016438,2]
[363238251,1748638241298,-640.95,0.00016438,2]
[363238253,1748638241307,-430.0,0.00016438,2]
[363238255,1748638241317,-430.0,0.00016438,2]
[363238257,1748638241328,-430.0,0.00016438,2]
[363238259,1748638241337,-430.0,0.00016438,2]
[363238261,1748638241346,-430.0,0.00016438,2]
[363238263,1748638241356,-430.0,0.00016438,2]
[363238265,1748638241365,-394.0235,0.00016438,2]
[363238267,1748638241374,-377.2179906,0.00016438,2]
[363238269,1748638241385,-430.0,0.00016438,2]
[363238271,1748638241394,-430.0,0.00016438,2]
[363238273,1748638241404,-430.0,0.00016438,2]
[363238275,1748638241414,-450.0,0.00016438,2]
[363238277,1748638241423,-430.0,0.00016438,2]
[363238279,1748638241433,-430.0,0.00016438,2]
[363238281,1748638241442,-430.0,0.00016438,2]
[363238283,1748638241451,-430.0,0.00016438,2]
[363238285,1748638241463,-430.0,0.00016438,2]
[363238287,1748638241473,-430.0,0.00016438,2]
[363238289,1748638241482,-430.0,0.00016438,2]
[363238291,1748638241491,-430.0,0.00016438,2]
[363238293,1748638241500,-475.18471669,0.00016438,2]
[363238295,1748638241509,-430.0,0.00016438,2]
[363238297,1748638241518,-430.0,0.00016438,2]
[363238299,1748638241528,-430.0,0.00016438,2]
[363238301,1748638241537,-430.0,0.00016438,2]
[363238303,1748638241547,-430.0,0.00016438,2]
[363238305,1748638241555,-430.0,0.00016438,2]
[363238307,1748638241565,-430.0,0.00016438,2]
[363238309,1748638241576,-430.0,0.00016438,2]
[363238311,1748638241585,-433.78185387,0.00016438,2]
[363238313,1748638241594,-430.0,0.00016438,2]
[363238315,1748638241603,-430.0,0.00016438,2]
[363238317,1748638241613,-430.0,0.00016438,2]
[363238319,1748638241621,-1937.74,0.00016438,2]
[363238320,1748638241630,-430.0,0.00016438,2]
[363238322,1748638241639,-1672.28,0.00016438,2]
[363238325,1748638241649,-430.0,0.00016438,2]
[363238326,1748638241659,-1171.51,0.00016438,2]
[363238328,1748638241668,-430.0,0.00016438,2]
[363238330,1748638241678,-430.0,0.00016438,2]
[363238332,1748638241686,-430.0,0.00016438,2]
[363238334,1748638241695,-430.0,0.00016438,2]
[363238336,1748638241705,-430.0,0.00016438,2]
[363238338,1748638241715,-430.0,0.00016438,2]
[363238340,1748638241724,-1680.0,0.00016498,2]
[363238343,1748638241733,-3125.0,0.0001671,2]
[363238344,1748638241743,-316.67922517,0.0001671,2]
[363238346,1748638241752,-3125.0,0.00016711,2]
[363238348,1748638241762,-3125.0,0.00016711,2]
[363238350,1748638241771,-500.0,0.00016711,2]
[363238353,1748638241780,-564.55318616,0.00016711,2]
[363238354,1748638241790,-564.55318616,0.00016711,2]
[363238356,1748638241800,-277.25739497,0.00016711,2]
[363238358,1748638241809,-564.55318616,0.00016711,2]
[363238360,1748638241818,-564.55318616,0.00016711,2]
[363238362,1748638241828,-564.55318616,0.00016711,2]
[363238365,1748638241837,-500.0,0.00016711,2]
[363238367,1748638241847,-564.55318616,0.00016711,2]
[363238369,1748638241856,-564.55318616,0.00016711,2]
[363238371,1748638241865,-564.55318616,0.00016711,2]
[363238372,1748638241874,-564.55318616,0.00016711,2]
[363238374,1748638241884,-500.0,0.00016711,2]
[363238376,1748638241893,-564.55318616,0.00016711,2]
[363238378,1748638241902,-564.55318616,0.00016711,2]
[363238380,1748638241912,-500.0,0.00016711,2]
[363238382,1748638241922,-564.55318616,0.00016711,2]
[363238384,1748638241931,-564.55318616,0.00016711,2]
[363238386,1748638241940,-564.55318616,0.00016711,2]
[363238388,1748638241950,-564.55318616,0.00016711,2]
[363238390,1748638241959,-564.55318616,0.00016711,2]
[363238392,1748638241968,-564.55318616,0.00016711,2]